fUST/lending_fUST_20260529
["ID","MTS","AMOUNT","RATE_DAILY","PERIOD"]
[423350958,1780066248000,-500.0,0.00018,2]
[423350959,1780066248000,-191.033965,0.00018,2]
[423350962,1780066248000,-249.639716,0.00018,2]
[423350964,1780066248000,-249.639716,0.00018,2]
[423350933,1780066248000,-181.825085,0.00018,2]
[423350965,1780066248000,-249.639716,0.00018,2]
[423350952,1780066248000,-500.0,0.00018,2]
[423350932,1780066248000,-181.825085,0.00018,2]
[423350918,1780066248000,-489.8765,0.00018,2]
[423350936,1780066248000,-371.82276,0.00018,2]
[423350909,1780066248000,-308.552843,0.00018,2]
[423350905,1780066248000,-469.8,0.00018,2]
[423350910,1780066248000,-308.552843,0.00018,2]
[423350973,1780066248000,-151.0,0.00018,2]
[423350906,1780066248000,-469.8,0.00018,2]
[423350903,1780066248000,-308.552843,0.00018,2]
[423350907,1780066248000,-308.552843,0.00018,2]
[423350908,1780066248000,-308.552843,0.00018,2]
[423350911,1780066248000,-308.552843,0.00018,2]
[423350912,1780066248000,-308.552842,0.00018,2]
[423350920,1780066248000,-489.8765,0.00018,2]
[423350921,1780066248000,-151.0,0.00018,2]
[423350922,1780066248000,-151.0,0.00018,2]
[423350919,1780066248000,-489.8765,0.00018,2]
[423350914,1780066248000,-489.8765,0.00018,2]
[423350917,1780066248000,-489.8765,0.00018,2]
[423350915,1780066248000,-489.8765,0.00018,2]
[423350913,1780066248000,-489.8765,0.00018,2]
[423350916,1780066248000,-489.8765,0.00018,2]
[423350924,1780066248000,-151.0,0.00018,2]
[423350935,1780066248000,-181.825093,0.00018,2]
[423350923,1780066248000,-151.0,0.00018,2]
[423350929,1780066248000,-181.825085,0.00018,2]
[423350928,1780066248000,-181.825085,0.00018,2]
[423350927,1780066248000,-152.382881,0.00018,2]
[423350934,1780066248000,-181.825085,0.00018,2]
[423350925,1780066248000,-151.0,0.00018,2]
[423350930,1780066248000,-181.825085,0.00018,2]
[423350926,1780066248000,-151.0,0.00018,2]
[423350931,1780066248000,-181.825085,0.00018,2]
[423350904,1780066248000,-308.552843,0.00018,2]
[423350968,1780066248000,-151.61,0.00018,2]
[423350976,1780066248000,-151.0,0.00018,2]
[423351003,1780066248000,-520.67,0.0001863,2]
[423351010,1780066248000,-5001.01296172,0.00019,30]
[423351009,1780066248000,-824.0,0.00018958,2]
[423351013,1780066248000,-824.0,0.00019047,2]
[423351005,1780066248000,-824.0,0.00018684,2]
[423351007,1780066248000,-151.61,0.000188,2]
[423351011,1780066248000,-5843.42055516,0.00019,2]
[423351012,1780066248000,-8635.72265094,0.00019011,2]
[423351008,1780066248000,-520.67,0.00018904,2]
[423351014,1780066248000,-196.86,0.000191,2]
[423351006,1780066248000,-698.925249,0.00018707,2]
[423351016,1780066248000,-151.61,0.000191,2]
[423351026,1780066248000,-520.67,0.00019178,2]
[423351027,1780066248000,-219.59622032,0.00019291,28]
[423351017,1780066248000,-429.2426,0.00019178,2]
[423351015,1780066248000,-767.15540412,0.000191,7]
[423351028,1780066248000,-151.61,0.000193,2]
[423351021,1780066248000,-446.18,0.00019178,2]
[423351024,1780066248000,-429.24,0.00019178,2]
[423351022,1780066248000,-429.2426,0.00019178,2]
[423351018,1780066248000,-336.9567,0.00019178,2]
[423351020,1780066248000,-429.2426,0.00019178,2]
[423351019,1780066248000,-525.87,0.00019178,2]
[423351025,1780066248000,-429.25,0.00019178,2]
[423351023,1780066248000,-333.2267,0.00019178,2]
[423350971,1780066248000,-151.0,0.00018,2]
[423351029,1780066248000,-41046.48785838,0.00019303,4]
[423351031,1780066248000,-520.67,0.00019452,2]
[423351032,1780066248000,-151.61,0.000195,2]
[423351004,1780066248000,-824.0,0.00018684,2]
[423351002,1780066248000,-824.0,0.00018601,2]
[423351030,1780066248000,-160.0,0.00019365,5]
[423350997,1780066248000,-832.0,0.00018456,2]
[423351000,1780066248000,-309.52104777,0.00018574,2]
[423350972,1780066248000,-151.0,0.00018,2]
[423350974,1780066248000,-151.0,0.00018,2]
[423350970,1780066248000,-151.0,0.00018,2]
[423350975,1780066248000,-151.0,0.00018,2]
[423350969,1780066248000,-151.0,0.00018,2]
[423350967,1780066248000,-249.639723,0.00018,2]
[423350978,1780066248000,-151.0,0.00018,2]
[423350988,1780066248000,-824.0,0.00018283,2]
[423350989,1780066248000,-824.0,0.00018364,2]
[423350979,1780066248000,-151.0,0.00018,2]
[423350977,1780066248000,-151.0,0.00018,2]
[423350980,1780066248000,-151.0,0.00018,2]
[423350981,1780066248000,-288.625544,0.00018,2]
[423350983,1780066248000,-824.0,0.00018088,2]
[423350966,1780066248000,-249.639716,0.00018,2]
[423350987,1780066248000,-151.61,0.000182,2]
[423350982,1780066248000,-188.0,0.0001803,2]
[423350995,1780066248000,-5000.0,0.0001843,2]
[423350994,1780066248000,-5000.0,0.0001843,2]
[423350992,1780066248000,-5000.0,0.0001843,2]
[423350993,1780066248000,-5000.0,0.0001843,2]
[423350996,1780066248000,-5000.0,0.0001843,2]
[423350998,1780066248000,-767.15540412,0.000185,7]
[423350991,1780066248000,-151.61,0.000184,2]
[423350986,1780066248000,-824.0,0.0001819,2]
[423351001,1780066248000,-151.61,0.000186,2]
[423350999,1780066248000,-160.0,0.00018567,4]
[423350984,1780066248000,-824.0,0.000181,2]
[423350990,1780066248000,-864.0,0.00018388,2]
[423350985,1780066248000,-300.0,0.000181,2]
[423351062,1780066249000,-151.0,0.00019986,2]
[423351077,1780066249000,-151.0,0.00019986,2]
[423351063,1780066249000,-151.0,0.00019986,2]
[423351065,1780066249000,-151.0,0.00019986,2]
[423351070,1780066249000,-151.0,0.00019986,2]
[423351087,1780066249000,-151.0,0.00019986,3]
[423351066,1780066249000,-151.0,0.00019986,2]
[423351068,1780066249000,-151.0,0.00019986,2]
[423351073,1780066249000,-151.0,0.00019986,2]
[423351083,1780066249000,-151.0,0.00019986,2]
[423351072,1780066249000,-151.0,0.00019986,2]
[423351067,1780066249000,-151.0,0.00019986,2]
[423351081,1780066249000,-151.0,0.00019986,2]
[423351079,1780066249000,-151.0,0.00019986,2]
[423351075,1780066249000,-151.0,0.00019986,2]
[423351076,1780066249000,-151.0,0.00019986,2]
[423351080,1780066249000,-151.0,0.00019986,2]
[423351078,1780066249000,-151.0,0.00019986,2]
[423351082,1780066249000,-151.0,0.00019986,2]
[423351095,1780066249000,-151.0,0.00019986,3]
[423351085,1780066249000,-151.0,0.00019986,3]
[423351084,1780066249000,-272.448,0.00019986,2]
[423351086,1780066249000,-151.0,0.00019986,3]
[423351092,1780066249000,-151.0,0.00019986,3]
[423351064,1780066249000,-151.0,0.00019986,2]
[423351074,1780066249000,-151.0,0.00019986,2]
[423351060,1780066249000,-151.0,0.00019986,2]
[423351043,1780066249000,-738.388715,0.00019839,2]
[423351071,1780066249000,-151.0,0.00019986,2]
[423351033,1780066249000,-300.0,0.00019589,3]
[423351034,1780066249000,-300.0,0.00019589,3]
[423351035,1780066249000,-152.69,0.000196,2]
[423351037,1780066249000,-185.0,0.00019691,2]
[423351039,1780066249000,-520.67,0.00019726,2]
[423351036,1780066249000,-298.994032,0.00019642,2]
[423351047,1780066249000,-470000.0,0.0001992,15]
[423351038,1780066249000,-151.61,0.000197,2]
[423351040,1780066249000,-21843.26786974,0.000198,7]
[423351046,1780066249000,-151.61,0.000199,2]
[423351041,1780066249000,-366.37085416,0.00019821,2]
[423351042,1780066249000,-160.0,0.00019839,2]
[423351061,1780066249000,-151.0,0.00019986,2]
[423351045,1780066249000,-227.03427466,0.00019878,2]
[423351048,1780066249000,-467.655003,0.0001992,2]
[423351050,1780066249000,-467.655003,0.0001992,2]
[423351059,1780066249000,-151.0,0.00019986,2]
[423351055,1780066249000,-269.53656,0.0001992,2]
[423351049,1780066249000,-467.655003,0.0001992,2]
[423351051,1780066249000,-467.6550041,0.0001992,2]
[423351052,1780066249000,-269.536567,0.0001992,2]
[423351056,1780066249000,-151.0,0.00019986,2]
[423351054,1780066249000,-269.536567,0.0001992,2]
[423351058,1780066249000,-151.0,0.00019986,2]
[423351057,1780066249000,-151.0,0.00019986,2]
[423351053,1780066249000,-269.536567,0.0001992,2]
[423351044,1780066249000,-1316.77743,0.00019839,2]
[423351090,1780066249000,-151.0,0.00019986,3]
[423351069,1780066249000,-151.0,0.00019986,2]
[423351093,1780066249000,-151.0,0.00019986,3]
[423351122,1780066249000,-191.02,0.00019996,2]
[423351124,1780066249000,-14873.53853135,0.0002,2]
[423351134,1780066249000,-500.0,0.0002,2]
[423351126,1780066249000,-205.07348978,0.0002,2]
[423351128,1780066249000,-161.74900118,0.0002,2]
[423351129,1780066249000,-156.50293123,0.0002,2]
[423351125,1780066249000,-375.89475661,0.0002,2]
[423351132,1780066249000,-10600.17819193,0.0002,2]
[423351127,1780066249000,-1000.0,0.0002,2]
[423351130,1780066249000,-207.79677227,0.0002,2]
[423351131,1780066249000,-207.0,0.0002,10]
[423351135,1780066249000,-500.0,0.0002,2]
[423351133,1780066249000,-454.48826889,0.0002,2]
[423351136,1780066249000,-500.0,0.0002,2]
[423351139,1780066249000,-1000.0,0.0002,10]
[423351138,1780066249000,-1039.18213917,0.0002,10]
[423351147,1780066249000,-150.0,0.0002,2]
[423351146,1780066249000,-533.181441,0.0002,2]
[423351145,1780066249000,-3263.93822422,0.0002,7]
[423351141,1780066249000,-258.48614471,0.0002,21]
[423351144,1780066249000,-151.0,0.0002,2]
[423351140,1780066249000,-3981.91,0.0002,2]
[423351142,1780066249000,-1000.0,0.0002,15]
[423351148,1780066249000,-75190.3551709,0.0002,20]
[423351149,1780066249000,-1000.0,0.0002,2]
[423351089,1780066249000,-151.0,0.00019986,3]
[423351137,1780066249000,-20000.0,0.0002,2]
[423351123,1780066249000,-150.97,0.00019996,2]
[423351143,1780066249000,-1000.0,0.0002,15]
[423351118,1780066249000,-160.0,0.0001999,2]
[423351117,1780066249000,-152.28,0.0001999,2]
[423351094,1780066249000,-151.0,0.00019986,3]
[423351088,1780066249000,-151.0,0.00019986,3]
[423351097,1780066249000,-151.0,0.00019986,3]
[423351096,1780066249000,-151.0,0.00019986,3]
[423351107,1780066249000,-151.0,0.00019986,5]
[423351099,1780066249000,-151.0,0.00019986,3]
[423351108,1780066249000,-151.0,0.00019986,5]
[423351098,1780066249000,-151.0,0.00019986,3]
[423351102,1780066249000,-151.0,0.00019986,5]
[423351103,1780066249000,-151.0,0.00019986,5]
[423351100,1780066249000,-151.0,0.00019986,3]
[423351105,1780066249000,-151.0,0.00019986,5]
[423351091,1780066249000,-151.0,0.00019986,3]
[423351106,1780066249000,-151.0,0.00019986,5]
[423351101,1780066249000,-284.268,0.00019986,3]
[423351109,1780066249000,-151.0,0.00019986,5]
[423351121,1780066249000,-151.82,0.00019991,2]
[423351119,1780066249000,-223.173597,0.0001999,2]
[423351111,1780066249000,-151.0,0.00019986,5]
[423351115,1780066249000,-187.067,0.00019986,2]
[423351120,1780066249000,-286.347194,0.0001999,2]
[423351104,1780066249000,-151.0,0.00019986,5]
[423351116,1780066249000,-209.6,0.00019986,3]
[423351110,1780066249000,-151.0,0.00019986,5]
[423351114,1780066249000,-151.0,0.00019986,2]
[423351112,1780066249000,-290.179,0.00019986,5]
[423351113,1780066249000,-151.0,0.00019986,2]
[423351196,1780066250000,-160.56,0.00020112,2]
[423351177,1780066250000,-242.0,0.0002,2]
[423351176,1780066250000,-767.15540412,0.0002,30]
[423351180,1780066250000,-250.0,0.0002,10]
[423351178,1780066250000,-1004.61909,0.0002,5]
[423351179,1780066250000,-300.0,0.0002,2]
[423351181,1780066250000,-151.55000802,0.0002,2]
[423351186,1780066250000,-151.84491253,0.00020041,2]
[423351185,1780066250000,-152.28,0.0002004,2]
[423351173,1780066250000,-7571.78456072,0.0002,2]
[423351182,1780066250000,-156.0,0.0002,2]
[423351188,1780066250000,-154.22,0.00020063,2]
[423351194,1780066250000,-151.61,0.000201,2]
[423351193,1780066250000,-150.97,0.00020096,2]
[423351187,1780066250000,-150.97,0.00020046,2]
[423351192,1780066250000,-165.97,0.00020092,2]
[423351191,1780066250000,-152.28,0.0002009,2]
[423351195,1780066250000,-250.0,0.000201,10]
[423351197,1780066250000,-154.22,0.00020113,2]
[423351199,1780066250000,-928.96758432,0.00020143,2]
[423351184,1780066250000,-170.27,0.00020024,2]
[423351198,1780066250000,-152.28,0.0002014,2]
[423351189,1780066250000,-1500.0,0.00020068,2]
[423351183,1780066250000,-154.22,0.00020013,2]
[423351161,1780066250000,-802.63605771,0.0002,5]
[423351175,1780066250000,-160.0,0.0002,10]
[423351200,1780066250000,-150.97,0.00020146,2]
[423351150,1780066250000,-166.0,0.0002,2]
[423351151,1780066250000,-300.0,0.0002,14]
[423351152,1780066250000,-4495.55329054,0.0002,10]
[423351155,1780066250000,-1735.0,0.0002,20]
[423351159,1780066250000,-400.0,0.0002,30]
[423351156,1780066250000,-258.0,0.0002,3]
[423351154,1780066250000,-151.0,0.0002,6]
[423351153,1780066250000,-1100.0,0.0002,2]
[423351157,1780066250000,-503.0,0.0002,2]
[423351158,1780066250000,-28426.46121984,0.0002,10]
[423351160,1780066250000,-1279.0,0.0002,5]
[423351171,1780066250000,-1742.42505923,0.0002,2]
[423351168,1780066250000,-767.15540412,0.0002,10]
[423351162,1780066250000,-12014.08963458,0.0002,2]
[423351164,1780066250000,-841.44743824,0.0002,30]
[423351166,1780066250000,-30000.0,0.0002,30]
[423351167,1780066250000,-520.67,0.0002,2]
[423351165,1780066250000,-3972.19779319,0.0002,30]
[423351163,1780066250000,-2835.0,0.0002,7]
[423351170,1780066250000,-250.2,0.0002,2]
[423351169,1780066250000,-250.0,0.0002,2]
[423351172,1780066250000,-10000.0,0.0002,2]
[423351174,1780066250000,-160.0,0.0002,30]
[423351201,1780066250000,-160.56943929,0.00020162,2]
[423351190,1780066250000,-170.28359223,0.00020074,2]
[423351202,1780066250000,-160.0,0.00020162,6]
[423351228,1780066250000,-366.026612,0.000203,10]
[423351230,1780066250000,-152.28,0.0002034,2]
[423351223,1780066250000,-520.67,0.00020274,2]
[423351229,1780066250000,-221562.08832394,0.00020324,2]
[423351231,1780066250000,-150.97,0.00020346,2]
[423351235,1780066250000,-2214.6979,0.000204,2]
[423351237,1780066250000,-1233.688,0.000204,2]
[423351238,1780066250000,-384.6929,0.000204,2]
[423351239,1780066250000,-307.09,0.000204,2]
[423351241,1780066250000,-1422.456,0.000204,2]
[423351251,1780066250000,-152.69,0.000205,2]
[423351240,1780066250000,-1648.18,0.000204,2]
[423351243,1780066250000,-1422.45,0.000204,2]
[423351242,1780066250000,-1422.456,0.000204,2]
[423351247,1780066250000,-1742.42505923,0.000204,2]
[423351245,1780066250000,-1779.416,0.000204,2]
[423351244,1780066250000,-1779.416,0.000204,2]
[423351246,1780066250000,-1779.41,0.000204,2]
[423351249,1780066250000,-232.975083,0.00020489,2]
[423351248,1780066250000,-150.97,0.00020446,2]
[423351250,1780066250000,-150.97,0.00020496,2]
[423351252,1780066250000,-151.61,0.000205,2]
[423351208,1780066250000,-150.97,0.00020196,2]
[423351233,1780066250000,-150.97,0.00020396,2]
[423351232,1780066250000,-152.35589869,0.0002039,2]
[423351236,1780066250000,-1910.65,0.000204,2]
[423351226,1780066250000,-150.97,0.00020296,2]
[423351203,1780066250000,-185.19650549,0.00020162,5]
[423351205,1780066250000,-165.72,0.00020176,2]
[423351209,1780066250000,-409.17,0.000202,2]
[423351204,1780066250000,-154.22,0.00020163,2]
[423351206,1780066250000,-305.1,0.00020178,2]
[423351234,1780066250000,-1913.5,0.000204,2]
[423351221,1780066250000,-152.28,0.0002024,2]
[423351253,1780066250000,-1883180.64922398,0.00020524,30]
[423351211,1780066250000,-250.0,0.000202,10]
[423351213,1780066250000,-172.07775913,0.00020226,2]
[423351212,1780066250000,-154.22,0.00020213,2]
[423351210,1780066250000,-1742.42505923,0.000202,2]
[423351207,1780066250000,-152.28,0.0002019,2]
[423351214,1780066250000,-165.72,0.00020226,2]
[423351215,1780066250000,-1000.0,0.00020227,2]
[423351225,1780066250000,-155.61708195,0.00020296,4]
[423351222,1780066250000,-150.97,0.00020246,2]
[423351218,1780066250000,-178.81,0.0002023,2]
[423351224,1780066250000,-152.28,0.0002029,2]
[423351217,1780066250000,-242.0,0.00020228,30]
[423351220,1780066250000,-162.55,0.00020235,2]
[423351219,1780066250000,-178.82,0.00020232,2]
[423351216,1780066250000,-178.81,0.00020228,2]
[423351227,1780066250000,-151.61,0.000203,2]
[423351260,1780066251000,-738.395027,0.00014999,2]
[423351266,1780066251000,-336.790885,0.00014999,2]
[423351267,1780066251000,-738.395027,0.00014999,2]
[423351265,1780066251000,-738.395027,0.00014999,2]
[423351263,1780066251000,-341.25494445,0.00014999,2]
[423351258,1780066251000,-738.395027,0.00014998,2]
[423351255,1780066251000,-336.790885,0.00014912,2]
[423351262,1780066251000,-397.14008255,0.00014999,2]
[423351259,1780066251000,-336.790885,0.00014998,2]
[423351257,1780066251000,-336.790885,0.00014945,2]
[423351254,1780066251000,-738.395027,0.00014912,2]
[423351256,1780066251000,-738.395027,0.00014945,2]
[423351264,1780066251000,-336.790885,0.00014999,2]
[423351261,1780066251000,-336.790885,0.00014999,2]
[423351269,1780066251000,-738.395027,0.00014912,2]
[423351280,1780066251000,-738.395027,0.00014999,2]
[423351270,1780066251000,-336.790885,0.00014912,2]
[423351283,1780066251000,-336.790881,0.00014999,2]
[423351284,1780066251000,-6440.95686755,0.00020524,30]
[423351282,1780066251000,-738.395027,0.00014999,2]
[423351279,1780066251000,-336.790885,0.00014999,2]
[423351274,1780066251000,-620.70188246,0.00014998,2]
[423351276,1780066251000,-117.69314454,0.00014998,2]
[423351268,1780066251000,-4629.36596214,0.00020524,30]
[423351277,1780066251000,-310.16045746,0.00014998,2]
[423351275,1780066251000,-738.395027,0.00014945,2]
[423351273,1780066251000,-336.790885,0.00014945,2]
[423351271,1780066251000,-738.395027,0.00014912,2]
[423351281,1780066251000,-336.790885,0.00014999,2]
[423351272,1780066251000,-738.395027,0.00014945,2]
[423351278,1780066251000,-26.63042754,0.00014998,2]
[423351286,1780066284000,800.93707747,0.00020524,120]
[423351291,1780066368000,829.7489768,0.00020524,120]
[423351479,1780066426000,800.93707747,0.00020524,120]
[423356078,1780066713000,206.0,0.00020436,120]
[423356500,1780066744000,-200.0,0.00012741,2]
[423357834,1780066911000,-343.31177717,0.00012805,2]
[423358422,1780066927000,-151.0,0.00012805,2]
[423358964,1780066944000,-184.03745232,0.00012934,2]
[423359496,1780066961000,-160.0,0.00012996,2]
[423359990,1780066978000,-968.96816293,0.00013,2]
[423361192,1780067030000,10336.43,0.00019998,120]
[423361415,1780067039000,800.93707747,0.00020436,120]
[423361592,1780067432000,-572.30858928,0.00013,2]
[423362061,1780067440000,-808.78074743,0.000131,2]
[423362055,1780067440000,-236.47215815,0.00013,2]
[423362057,1780067440000,-180.35670328,0.00013049,2]
[423362063,1780067440000,-808.78074743,0.000133,2]
[423362065,1780067440000,-808.78074743,0.000134,2]
[423362067,1780067440000,-421.68194636,0.00013401,2]
[423362068,1780067440000,-229.95105834,0.000135,2]
[423362059,1780067440000,-160.0,0.00013097,2]
[423363194,1780067449000,-232.115,0.00018999,2]
[423363190,1780067449000,-421.66771467,0.00018998,2]
[423363188,1780067449000,-237.79851103,0.00018998,2]
[423363187,1780067449000,-334.51007825,0.00018998,2]
[423363192,1780067449000,-393.90138108,0.00018998,2]
[423363182,1780067449000,-277.69,0.00018904,2]
[423363184,1780067449000,-896.0,0.00018998,2]
[423363170,1780067449000,-245.28511646,0.00017049,2]
[423363173,1780067449000,-182.544,0.00017771,2]
[423363176,1780067449000,-277.69,0.0001863,2]
[423363180,1780067449000,-1556.34021559,0.000189,2]
[423363167,1780067449000,-2990.3883996,0.00015106,2]
[423363165,1780067449000,-212.82090987,0.00015049,2]
[423363147,1780067449000,-159.0558049,0.00014737,2]
[423363145,1780067449000,-174.1931631,0.00014649,2]
[423363156,1780067449000,-318.1116098,0.00015044,2]
[423363143,1780067449000,-421.68194636,0.00013669,7]
[423363159,1780067449000,-354.4489284,0.00015044,2]
[423363154,1780067449000,-414.81834356,0.00015044,2]
[423363162,1780067449000,-166.1688724,0.00015044,2]
[423363149,1780067449000,-1588.590703,0.00014757,2]
[423363196,1780067449000,-500.0,0.00018999,2]
[423363141,1780067449000,-578.82968909,0.000135,2]
[423363178,1780067449000,-150.17422278,0.00018899,2]
[423363198,1780067449000,-500.0,0.00018999,2]
[423363151,1780067449000,-185.0,0.00014771,2]
[423363211,1780067449000,-500.0,0.00018999,2]
[423363253,1780067449000,-262.36472193,0.00018999,2]
[423363255,1780067449000,-5765.58065698,0.00019,2]
[423363249,1780067449000,-500.0,0.00018999,2]
[423363251,1780067449000,-500.0,0.00018999,2]
[423363247,1780067449000,-500.0,0.00018999,2]
[423363245,1780067449000,-500.0,0.00018999,2]
[423363231,1780067449000,-500.0,0.00018999,2]
[423363227,1780067449000,-500.0,0.00018999,2]
[423363241,1780067449000,-500.0,0.00018999,2]
[423363233,1780067449000,-500.0,0.00018999,2]
[423363243,1780067449000,-500.0,0.00018999,2]
[423363239,1780067449000,-500.0,0.00018999,2]
[423363229,1780067449000,-500.0,0.00018999,2]
[423363235,1780067449000,-500.0,0.00018999,2]
[423363213,1780067449000,-500.0,0.00018999,2]
[423363217,1780067449000,-500.0,0.00018999,2]
[423363215,1780067449000,-500.0,0.00018999,2]
[423363237,1780067449000,-500.0,0.00018999,2]
[423363205,1780067449000,-606.49867586,0.00018999,2]
[423363203,1780067449000,-500.0,0.00018999,2]
[423363207,1780067449000,-500.0,0.00018999,2]
[423363220,1780067449000,-500.0,0.00018999,2]
[423363222,1780067449000,-500.0,0.00018999,2]
[423363225,1780067449000,-500.0,0.00018999,2]
[423363201,1780067449000,-500.0,0.00018999,2]
[423363209,1780067449000,-500.0,0.00018999,2]
[423363448,1780067468000,10000.0,0.00020548,120]
[423372648,1780067744000,196.0,0.00020436,120]
[423374983,1780068150000,-448.61503003,7.6e-05,2]
[423375075,1780068153000,-500.0,7.599e-05,2]
[423378452,1780068585000,-276.41293151,7.598e-05,2]
[423378479,1780068614000,-176.65683306,7.598e-05,2]
[423378480,1780068614000,-323.34316694,7.599e-05,2]
[423378506,1780068616000,-176.65683306,7.599e-05,2]
[423378508,1780068616000,-323.34316694,7.599e-05,2]
[423378516,1780068618000,-323.34532077,7.599e-05,2]
[423378515,1780068618000,-176.65683306,7.599e-05,2]
[423378732,1780068632000,-30.49405104,7.599e-05,2]
[423378730,1780068632000,-500.0,7.599e-05,2]
[423378728,1780068632000,-176.65467923,7.599e-05,2]
[423378733,1780068632000,-469.50594896,7.599e-05,2]
[423378735,1780068632000,-500.0,7.599e-05,2]
[423378729,1780068632000,-500.0,7.599e-05,2]
[423378737,1780068632000,-438.30594896,7.599e-05,2]
[423378736,1780068632000,-61.69405104,7.599e-05,2]
[423378738,1780068632000,-500.0,7.599e-05,2]
[423378741,1780068632000,-313.47405104,7.599e-05,2]
[423378739,1780068632000,-500.0,7.599e-05,2]
[423378740,1780068632000,-500.0,7.599e-05,2]
[423378731,1780068632000,-500.0,7.599e-05,2]
[423378896,1780068638000,-562.43,8.219e-05,2]
[423378897,1780068638000,-500.0,8.219e-05,2]
[423378878,1780068638000,-522.38721672,7.599e-05,2]
[423378883,1780068638000,-522.38721672,7.599e-05,2]
[423378874,1780068638000,-522.38721672,7.599e-05,2]
[423378875,1780068638000,-522.38721672,7.599e-05,2]
[423378868,1780068638000,-500.0,7.599e-05,2]
[423378867,1780068638000,-500.0,7.599e-05,2]
[423378869,1780068638000,-500.0,7.599e-05,2]
[423378873,1780068638000,-500.0,7.599e-05,2]
[423378872,1780068638000,-500.0,7.599e-05,2]
[423378866,1780068638000,-186.52594896,7.599e-05,2]
[423378900,1780068638000,-264.255565,9.856e-05,2]
[423378870,1780068638000,-500.0,7.599e-05,2]
[423378881,1780068638000,-522.38721672,7.599e-05,2]
[423378876,1780068638000,-522.38721672,7.599e-05,2]
[423378898,1780068638000,-208.45506301,9.598e-05,2]
[423378885,1780068638000,-104419.539162,7.6e-05,2]
[423378891,1780068638000,-1927.49815901,8e-05,2]
[423378880,1780068638000,-522.38721672,7.599e-05,2]
[423378888,1780068638000,-377.41967901,8e-05,2]
[423378889,1780068638000,-150.17422278,8e-05,2]
[423378894,1780068638000,-500.0,8.219e-05,2]
[423378895,1780068638000,-235.20951306,8.219e-05,2]
[423378882,1780068638000,-522.38721672,7.599e-05,2]
[423378893,1780068638000,-1546.3726807,8.199e-05,2]
[423378887,1780068638000,-20327.82970685,7.6e-05,2]
[423378890,1780068638000,-3072.50184099,8e-05,2]
[423378884,1780068638000,-43636.42344723,7.6e-05,2]
[423378901,1780068638000,-240.25329296,0.00011598,2]
[423378877,1780068638000,-522.38721672,7.599e-05,2]
[423378903,1780068639000,-264.255565,0.0001027,2]
[423378905,1780068639000,-11659.07117351,0.000119,2]
[423378902,1780068639000,-11458.57629424,0.000119,2]
[423378953,1780068640000,-264.255565,0.000111,2]
[423378952,1780068640000,-264.255565,0.00010685,2]
[423378955,1780068641000,-207.233305,0.000119,2]
[423378954,1780068641000,-264.255565,0.00011515,2]
[423378992,1780068643000,-2318.2818666,0.000119,2]
[423378989,1780068643000,-1418.9745,0.000119,2]
[423378990,1780068643000,-8303.40785033,0.000119,2]
[423378987,1780068643000,-2214.61304336,0.000119,2]
[423378986,1780068643000,-18035.05592197,0.000119,2]